fUST/lending_fUST_20240602
["ID","MTS","AMOUNT","RATE_DAILY","PERIOD"]
[328380651,1717297832475,-1039.37302118,0.00018743,2]
[328380653,1717297832484,-21510.23996968,0.00018744,2]
[328380655,1717297832493,-163.4292115,0.00019178,2]
[328380657,1717297832503,-3361.1267752,0.00019178,2]
[328380659,1717297832512,-3000.0,0.0001918,2]
[328380662,1717297832521,-850.0164444,0.00020625,2]
[328380664,1717297832530,-150.0,0.00020725,2]
[328380665,1717297832541,-187.20236745,0.00020818,2]
[328380667,1717297832551,-153.0,0.00021096,2]
[328380670,1717297832560,-153.0,0.00021096,2]
[328380673,1717297832570,-204.985722,0.00021096,2]
[328380676,1717297832578,-204.985722,0.00021096,2]
[328380679,1717297832588,-153.0,0.00021178,2]
[328380681,1717297832597,-204.985722,0.00021178,2]
[328380683,1717297832606,-204.985722,0.00021178,2]
[328380685,1717297832615,-3890.77403632,0.00021453,2]
[328380687,1717297832627,-342.38645152,0.00021453,2]
[328380689,1717297832636,-157.61354848,0.00021539,2]
[328380691,1717297832648,-310.0,0.00021539,2]
[328380693,1717297832661,-382.40289592,0.00021539,2]
[328380695,1717297832670,-293.0,0.000219,2]
[328380697,1717297832679,-152.693,0.00021912,2]
[328380698,1717297832688,-498.0,0.00021912,2]
[328380700,1717297832698,-231.2033584,0.00021913,2]
[328380702,1717297832707,-436.51885275,0.00021913,2]
[328380704,1717297832717,-54.99483062,0.00021913,2]
[328380706,1717297832728,-844.05190677,0.00021913,2]
[328380708,1717297832737,-163.3476093,0.00021913,2]
[328380710,1717297832746,-72.3398934,0.00021913,2]
[328380712,1717297832757,-1654.22094357,0.00021913,2]
[328380713,1717297832766,-9515.08061435,0.00021913,2]
[328380715,1717297832775,-209.9768732,0.00021913,2]
[328380717,1717297832785,-10238.88552615,0.00021914,2]
[328380719,1717297832794,-3967.22833717,0.00021914,2]
[328380721,1717297832803,-158.74590109,0.00021914,2]
[328380723,1717297832812,-691.43228075,0.00021914,2]
[328380724,1717297832821,-607.92187339,0.00021914,2]
[328380726,1717297832830,-523.56927351,0.00021914,2]
[328380727,1717297832839,-424.00866872,0.00021914,2]
[328380728,1717297832851,-516.20767634,0.00021914,2]
[328380730,1717297832862,-339.88131084,0.00021914,2]
[328380731,1717297832871,-216.56654698,0.00021914,2]
[328380732,1717297832880,-283.05908061,0.00021914,2]
[328380733,1717297832888,-1907.79080379,0.00021914,2]
[328380734,1717297832898,-155.10034197,0.00021914,2]
[328380735,1717297832907,-1026.994706,0.00021914,2]
[328380764,1717297838390,-18.03761169,0.00021914,2]
[328380765,1717297838399,-516.80791275,0.00021914,2]
[328380767,1717297838409,-7091.29843977,0.00021914,2]
[328380769,1717297838418,-155.24282712,0.00021914,2]
[328380771,1717297838427,-1158.29790099,0.00021914,2]
[328380773,1717297838438,-1345.27329533,0.00021914,2]
[328380775,1717297838447,-317.0057363,0.00021914,2]
[328380776,1717297838456,-155.68932646,0.00021914,2]
[328380777,1717297838465,-153.63515223,0.00021914,2]
[328380778,1717297838476,-1.5591352,0.00021914,2]
[328380779,1717297838485,-155.60866641,0.00021914,2]
[328380780,1717297838494,-154.98450155,0.00021914,2]
[328380781,1717297838503,-192.20959345,0.00021914,2]
[328380782,1717297838512,-352.71996601,0.00021914,2]
[328380783,1717297838521,-179.85199215,0.00021914,2]
[328380784,1717297838530,-253.62204163,0.00021914,2]
[328380785,1717297838542,-585.01001268,0.00021914,2]
[328380786,1717297838552,-315.45591505,0.00021914,2]
[328380787,1717297838562,-407.57852237,0.00021914,2]
[328380788,1717297838571,-1163.34712101,0.00021914,2]
[328380789,1717297838583,-607.56852357,0.00021914,2]
[328380790,1717297838592,-10224.11093107,0.00021915,2]
[328380791,1717297838602,-1315.14297878,0.00021915,2]
[328380792,1717297838611,-500.0,0.00021915,2]
[328380793,1717297838620,-373.32260684,0.00021915,2]
[328380794,1717297838629,-500.0,0.00021915,2]
[328380795,1717297838639,-500.0,0.00021915,2]
[328380796,1717297838648,-378.74687235,0.00021915,2]
[328380797,1717297838657,-500.0,0.00021915,2]
[328380798,1717297838666,-500.0,0.00021915,2]
[328380799,1717297838676,-500.0,0.00021915,2]
[328380800,1717297838685,-6163.73549751,0.00021916,7]
[328380836,1717297842348,-737.55874896,0.00021916,7]
[328380837,1717297842358,-371.17661807,0.00021916,7]
[328380838,1717297842367,-157.836191,0.00021916,2]
[328380839,1717297842377,-151.0,0.00021916,2]
[328380840,1717297842386,-151.0,0.00021916,2]
[328380841,1717297842395,-151.0,0.00021916,2]
[328380842,1717297842405,-151.0,0.00021916,2]
[328380843,1717297842415,-151.0,0.00021916,2]
[328380844,1717297842424,-151.0,0.00021916,2]
[328380845,1717297842433,-200.691188,0.00021916,2]
[328380846,1717297842445,-200.691188,0.00021916,2]
[328380847,1717297842455,-200.691188,0.00021916,2]
[328380848,1717297842465,-200.691188,0.00021916,2]
[328380849,1717297842474,-200.691188,0.00021916,2]
[328380850,1717297842483,-200.691188,0.00021916,2]
[328380851,1717297842493,-551.672012,0.00021916,2]
[328380852,1717297842502,-551.672012,0.00021916,2]
[328380853,1717297842512,-551.672012,0.00021916,2]
[328380854,1717297842522,-551.672012,0.00021916,2]
[328380855,1717297842531,-551.672012,0.00021916,2]
[328380856,1717297842542,-551.672012,0.00021916,2]
[328380857,1717297842553,-151.0,0.00021916,2]
[328380858,1717297842562,-153.909647,0.00021916,2]
[328380859,1717297842571,-3108.09525219,0.00021916,7]
[328380860,1717297842586,-1593.10474781,0.00021916,7]
[328380861,1717297842595,-2430.85643501,0.00021916,7]
[328380862,1717297842608,-249.993024,0.00021916,7]
[328380883,1717297843454,-2020.35054099,0.00021916,7]
[328380885,1717297843464,-4381.43579258,0.00021916,7]
[328380920,1717299032512,-590.81101635,0.00016436,2]
[328380921,1717299032522,-2306.2875712,0.00018961,2]
[328380922,1717299032532,-341.6709157,0.00019125,2]
[328380923,1717299032648,-709.50051274,0.00019816,2]
[328380924,1717299032658,-280.7100445,0.00019884,2]
[328380925,1717299032667,-49468.82581121,0.0002,2]
[328380931,1717299038987,-473.00034183,0.000189,2]
[328380932,1717299038996,-1007.74908106,0.0002,2]
[328380934,1717299042584,-252.92464018,0.0002,2]
[328380935,1717299042596,-7413.89142839,0.0002,2]
[328380936,1717299042607,-17653.44899851,0.0002,2]
[328380937,1717299042617,-637.5123333,0.00020142,2]
[328380938,1717299042626,-172.658119,0.00020242,2]
[328380939,1717299042637,-5381.13101563,0.00020372,2]
[328380962,1717299047076,-2259.26515726,0.00020372,2]
[328380963,1717299047087,-11061.77949321,0.00020372,2]
[328380964,1717299047096,-681.93,0.00020392,3]
[328380965,1717299047106,-1495.1760705,0.00020402,2]
[328380966,1717299047115,-637.5123333,0.00021125,2]
[328380967,1717299047124,-4233.16048784,0.00021536,2]
[328380968,1717299047133,-620.00968296,0.00021715,2]
[328380969,1717299047141,-498.0,0.00021725,2]
[328380970,1717299047150,-3000.0,0.000218,2]
[328380971,1717299047159,-5166.109451,0.0002181,2]
[328380972,1717299047169,-1350.09378414,0.0002189,2]
[328380973,1717299047177,-154.44774978,0.000219,2]
[328380974,1717299047186,-185.58830904,0.00021912,7]
[328380975,1717299047196,-19168.80257536,0.00021912,2]
[328380976,1717299047205,-500.0,0.00021912,2]
[328380977,1717299047214,-500.0,0.00021912,2]
[328380978,1717299047223,-500.0,0.00021912,2]
[328380979,1717299047232,-227.24812341,0.00021912,2]
[328380980,1717299047241,-155.00388352,0.00021913,2]
[328380981,1717299047250,-11079.50388954,0.00021913,2]
[328380982,1717299047259,-3450.64712324,0.00021914,7]
[328380983,1717299047269,-691.43228075,0.00021914,2]
[328380984,1717299047278,-9575.16966712,0.00021914,2]
[328380985,1717299047287,-35397.68649351,0.00021914,2]
[328380988,1717299416310,6903.4809343,0.000125,2]
[328381007,1717300118393,155.84027698,0.000136,2]
[328381050,1717300234193,-315.33356122,0.00019814,2]
[328381051,1717300234202,-597.91246615,0.00021597,2]
[328381052,1717300234217,-3635.24802169,0.00021597,2]
[328381053,1717300234226,-3000.0,0.000218,2]
[328381054,1717300234235,-3000.0,0.0002181,2]
[328381055,1717300234245,-594.89201083,0.00021814,2]
[328381056,1717300234255,-167.18312344,0.00021814,2]
[328381057,1717300234393,-464.88612729,0.00021817,3]
[328381058,1717300234404,-167.18312344,0.00021817,2]
[328381059,1717300234413,-3000.0,0.0002182,2]
[328381060,1717300234423,-3000.0,0.0002183,2]
[328381061,1717300234432,-3000.0,0.0002184,2]
[328381062,1717300234442,-3000.0,0.0002185,2]
[328381063,1717300234451,-3000.0,0.0002186,2]
[328381064,1717300234461,-3000.0,0.0002187,2]
[328381065,1717300234470,-393.720408,0.00021913,2]
[328381066,1717300234479,-393.720408,0.00021913,2]
[328381067,1717300234489,-10504.67546029,0.00021914,2]
[328381068,1717300234498,-3077.93598443,0.00021914,2]
[328381105,1717300258159,155.1543055,0.00015,2]
[328381127,1717301432238,-212.1589862,0.00016436,2]
[328381128,1717301432247,-292.34662325,0.00016436,2]
[328381129,1717301432257,-334.76524511,0.00018696,2]
[328381130,1717301432268,-1048.245,0.00018696,2]
[328381131,1717301432280,-3800.82301169,0.00018696,2]
[328381132,1717301432288,-722.4672904,0.00018895,2]
[328381133,1717301432297,-260.22237415,0.000189,2]
[328381134,1717301432306,-177.274792,0.00019614,2]
[328381135,1717301432315,-189.96804994,0.00019714,2]
[328381136,1717301432325,-164.160636,0.00019783,2]
[328381137,1717301432334,-1487.4585966,0.0001989,2]
[328381138,1717301432343,-34069.99259637,0.00020272,2]
[328381139,1717301432352,-609.99471568,0.00021423,2]
[328381140,1717301432361,-4158.19172559,0.00021468,2]
[328381141,1717301432373,-74.96876225,0.00021468,2]
[328381142,1717301432382,-623.67901546,0.00021661,2]
[328381143,1717301432391,-150.0,0.000218,2]
[328381144,1717301432401,-12869.92202791,0.00021914,2]
[328381145,1717301432410,-2928.97455787,0.00021914,2]
[328381146,1717301432420,-318.00069836,0.00021914,2]
[328381147,1717301432429,-693.6703341,0.00021914,2]
[328381148,1717301432438,-1320.90156692,0.00021914,2]
[328381149,1717301432448,-351.87655956,0.00021914,2]
[328381150,1717301432457,-1903.13024359,0.00021914,2]
[328381151,1717301432466,-2876.47155049,0.00021915,2]
[328381152,1717301432475,-231.92738547,0.00021915,2]
[328381153,1717301432484,-2692.83385798,0.00021915,2]
[328381154,1717301432493,-277.26165553,0.00021915,2]
[328381155,1717301432502,-500.0,0.00021915,2]
[328381156,1717301432511,-151.0,0.00021916,2]
[328381157,1717301432520,-151.0,0.00021916,2]
[328381158,1717301432530,-4126.87,0.00021916,7]
[328381159,1717301432539,-4126.87,0.00021916,7]
[328381160,1717301432548,-4126.87,0.00021916,7]
[328381161,1717301432556,-4126.87,0.00021916,7]
[328381162,1717301432565,-4126.87,0.00021916,7]
[328381163,1717301432574,-4126.87,0.00021916,7]
[328381164,1717301432583,-158.871738,0.00021916,2]
[328381165,1717301432592,-2016.49745519,0.00021916,7]
[328381198,1717301437886,-185.58830903,0.00021468,7]
[328381200,1717301437895,-81.86470042,0.00021916,7]
[328381202,1717301437906,-2028.50784439,0.00021916,7]
[328381204,1717301437915,-4126.87,0.00021916,7]
[328381206,1717301437924,-2539.65281561,0.00021916,7]
[328381210,1717301440643,-1587.21718439,0.00021916,7]
[328381211,1717301440652,-2321.20958745,0.00021916,7]
[328381212,1717301440664,-1345.14829684,0.00021916,7]
[328381213,1717301440744,-453.0,0.00021916,7]
[328381221,1717301445860,-7.51211571,0.00021916,7]
[328381222,1717301445869,-294.76183658,0.00021916,7]
[328381223,1717301454861,225.92245574,0.00015,2]
[328381225,1717301830568,2093.1564063,0.00015,2]
[328381226,1717301848464,2093.1564063,0.00015,2]
[328381227,1717301866487,2184.90036459,0.00015,2]
[328381237,1717302632388,-223.48158276,0.000189,2]
[328381238,1717302632398,-177.274792,0.00020315,2]
[328381239,1717302632529,-118.08374578,0.00020547,2]
[328381240,1717302632541,-576.58072311,0.00020547,2]
[328381241,1717302632552,-826.65721377,0.00020547,2]
[328381242,1717302637924,-14332.84750488,0.00020547,2]
[328381243,1717302637933,-164.160636,0.00020637,2]
[328381244,1717302637943,-13896.7150592,0.00020647,2]
[328381245,1717302637953,-644.84422712,0.00021407,2]
[328381246,1717302637962,-153.0,0.000215,2]
[328381247,1717302637971,-153.0,0.000215,2]
[328381248,1717302637984,-204.985722,0.000215,2]
[328381249,1717302637993,-156.2819593,0.00021507,2]
[328381250,1717302638002,-4233.16048784,0.00021574,2]
[328381251,1717302638011,-153.0,0.000216,2]
[328381252,1717302638020,-153.0,0.000216,2]
[328381253,1717302638029,-153.0,0.000216,2]
[328381254,1717302638039,-153.0,0.000216,2]
[328381255,1717302638048,-153.0,0.000216,2]
[328381256,1717302638057,-204.985722,0.000216,2]
[328381257,1717302638066,-153.0,0.000216,2]
[328381258,1717302638075,-151.0,0.00021693,5]
[328381259,1717302638084,-153.0,0.000217,2]
[328381260,1717302638094,-153.3779886,0.000217,2]
[328381261,1717302638103,-191.9113065,0.000217,2]
[328381262,1717302638112,-383.6358505,0.000217,2]
[328381263,1717302638121,-154.265204,0.000217,2]
[328381264,1717302638132,-153.0,0.000217,2]
[328381265,1717302638142,-153.0,0.000217,2]
[328381266,1717302638151,-150.0,0.000218,2]
[328381267,1717302638160,-151.0,0.00021805,5]
[328381268,1717302638169,-217.70148642,0.00021815,2]
[328381269,1717302638178,-217.70148639,0.00021816,2]
[328381270,1717302638187,-217.70148639,0.00021816,2]
[328381271,1717302638197,-217.70148639,0.00021817,2]
[328381272,1717302638206,-217.70148639,0.00021817,2]
[328381273,1717302638215,-282.0,0.000219,2]
[328381274,1717302638224,-276.09343018,0.00021915,2]
[328381275,1717302638234,-394.90286226,0.00021915,2]
[328381276,1717302638243,-1153.75711423,0.00021915,2]
[328381277,1717302638252,-1877.87906943,0.00021915,2]
[328381278,1717302638261,-351.87655956,0.00021915,2]
[328381279,1717302638270,-333.11213809,0.00021916,2]
[328381280,1717302638279,-2395.06,0.00021916,7]
[328381281,1717302638288,-2395.06,0.00021916,7]
[328381282,1717302638298,-2395.06,0.00021916,7]
[328381283,1717302638307,-2395.06,0.00021916,7]
[328381284,1717302638316,-2395.06,0.00021916,7]
[328381285,1717302638326,-1066.82515806,0.00021916,7]
[328381286,1717302638349,-1328.23484194,0.00021916,7]
[328381287,1717302638359,-1013.4993916,0.00021916,7]
[328381288,1717302638370,-1030.64053897,0.00021916,7]
[328381297,1717302641120,-350.92006943,0.00021916,7]
[328381298,1717302641134,-2001.63081872,0.00021916,7]
[328381299,1717302641505,-393.42918128,0.00021916,7]
[328381300,1717302641515,-2395.06,0.00021916,7]
[328381301,1717302641524,-2395.06,0.00021916,7]
[328381302,1717302641533,-2395.06,0.00021916,7]
[328381303,1717302641542,-2395.06,0.00021916,7]
[328381304,1717302641551,-2395.06,0.00021916,7]
[328381305,1717302641560,-2395.06,0.00021916,7]
[328381306,1717302641570,-1184.35428544,0.00021916,7]
[328381338,1717302873124,119693.16135701,0.00027998,120]
[328381381,1717303243556,923.07966814,0.00014,2]
[328381406,1717303832346,-1007.88974121,0.00020448,2]
[328381407,1717303832357,-199.86960789,0.00020448,2]
[328381408,1717303832367,-406.8629563,0.00020507,2]
[328381409,1717303832376,-29.06231464,0.00020719,2]
[328381445,1717303842029,-278.25713472,0.00020719,2]
[328381446,1717303842039,-659.9278516,0.00020814,2]
[328381447,1717303842049,-191.21373101,0.00020819,2]
[328381448,1717303842058,-351.92370805,0.00021,2]
[328381449,1717303842067,-193.4712911,0.0002104,2]
[328381496,1717305032564,-385.48789276,0.000189,2]
[328381497,1717305032574,-250.0,0.00019002,2]
[328381498,1717305032583,-1754.1979692,0.00019012,2]
[328381499,1717305032593,-325.4407277,0.0001905,2]
[328381500,1717305032602,-275.433699,0.00019177,2]
[328381501,1717305032611,-177.274792,0.00019178,2]
[328381502,1717305032620,-168.6808944,0.0001935,2]
[328381503,1717305032629,-153.0,0.000206,2]
[328381504,1717305032639,-410.9502551,0.000206,2]
[328381505,1717305032651,-306.0,0.000206,2]
[328381506,1717305032660,-153.0,0.000206,2]
[328381507,1717305032669,-204.942387,0.000206,2]
[328381508,1717305032678,-204.942387,0.000206,2]
[328381509,1717305032687,-153.0,0.000206,2]
[328381510,1717305032697,-172.65803332,0.000207,2]
[328381511,1717305032707,-204.985722,0.00020778,2]
[328381512,1717305032716,-172.65803329,0.0002078,2]
[328381513,1717305032725,-41972.0,0.000208,2]
[328381514,1717305032735,-203.6897747,0.000208,2]
[328381515,1717305032744,-4233.16048784,0.00020812,2]
[328381516,1717305032753,-172.65803329,0.0002086,2]
[328381517,1717305032762,-409.6707169,0.00020878,2]
[328381518,1717305032771,-153.0,0.00020878,2]
[328381519,1717305032780,-409.884774,0.00020878,2]
[328381520,1717305032789,-204.985722,0.00020904,2]
[328381521,1717305032799,-172.65803329,0.0002094,2]
[328381522,1717305032808,-10526.1668146,0.00020998,2]
[328381523,1717305032817,-155.20393317,0.00020998,2]
[328381524,1717305032827,-399.18266923,0.00020999,2]
[328381525,1717305032836,-155.0571443,0.00021,2]
[328381526,1717305032847,-40502.74015029,0.00021,2]
[328381547,1717305041751,-72783.10041756,0.00021,2]
[328381548,1717305041761,-761.18130604,0.00021038,2]
[328381549,1717305041770,-309.8295945,0.00021038,2]
[328381550,1717305041779,-1186.81738611,0.00021038,2]
[328381551,1717305041788,-188.23487276,0.00021038,2]
[328381552,1717305041797,-6409.06692853,0.00021038,2]
[328381562,1717305099949,261.65095125,9.999e-05,2]
[328381565,1717305606010,500.26894592,0.000121,2]
[328381566,1717305653699,154.98450155,0.000121,2]
[328381567,1717305671620,206.5735553,0.000121,2]
[328381617,1717306231984,-1872.29956246,0.00018798,2]
[328381619,1717306231994,-3361.1267752,0.00018799,2]
[328381621,1717306232003,-256.9919285,0.000189,2]
[328381623,1717306232012,-3000.0,0.00019722,2]
[328381625,1717306232022,-275.4336992,0.00019775,2]
[328381627,1717306232032,-628.28064836,0.00020527,2]
[328381629,1717306232041,-4233.16048784,0.00020644,2]
[328381631,1717306232050,-204.942387,0.000207,2]
[328381633,1717306232059,-208.7558658,0.000207,2]
[328381635,1717306232068,-310.4950788,0.000207,2]
[328381637,1717306232077,-204.942387,0.000207,2]
[328381639,1717306232087,-153.0,0.00020822,2]
[328381641,1717306232096,-153.0,0.00020822,2]
[328381643,1717306232105,-153.0,0.00020822,2]
[328381645,1717306232115,-16322.90074478,0.00020826,2]
[328381647,1717306232124,-306.0,0.00020878,2]
[328381648,1717306232133,-153.0,0.000209,2]
[328381649,1717306232142,-919.18098406,0.00020937,2]
[328381650,1717306232151,-237.96840491,0.00020938,2]
[328381651,1717306232160,-330.84434099,0.00020938,2]
[328381652,1717306232169,-237.96840488,0.00020939,2]
[328381653,1717306232178,-237.96840488,0.00020939,2]
[328381654,1717306232188,-237.96840488,0.0002094,2]
[328381655,1717306232198,-237.96840488,0.0002094,2]
[328381656,1717306232207,-153.0,0.00021,2]
[328381657,1717306232216,-409.841439,0.00021,2]
[328381658,1717306232225,-1282.71,0.00021,2]
[328381659,1717306232234,-1284.0,0.00021,2]
[328381660,1717306232244,-153.0,0.00021,2]
[328381661,1717306232253,-240.04065867,0.00021036,2]
[328381662,1717306232262,-1280.0976559,0.00021036,2]
[328381663,1717306232271,-1585.88694591,0.00021036,2]
[328381664,1717306232281,-1503.89573726,0.00021036,2]
[328381665,1717306232291,-231.92738547,0.00021036,2]
[328381666,1717306232300,-2692.83385798,0.00021036,2]
[328381667,1717306232310,-262.89033537,0.00021037,2]
[328381668,1717306232319,-500.0,0.00021037,2]
[328381669,1717306232328,-500.0,0.00021037,2]
[328381670,1717306232337,-500.0,0.00021037,2]
[328381671,1717306232347,-119.66595908,0.00021037,2]
[328381680,1717306241805,-292.36531691,0.00021037,2]
[328381681,1717306241815,-500.0,0.00021037,2]
[328381682,1717306241825,-500.0,0.00021037,2]
[328381683,1717306241834,-539.49029759,0.00021037,2]
[328381684,1717306241844,-500.0,0.00021037,2]
[328381685,1717306241853,-514.80786196,0.00021037,2]
[328381686,1717306241871,-500.0,0.00021037,2]
[328381687,1717306241880,-500.0,0.00021037,2]
[328381688,1717306241890,-500.0,0.00021037,2]
[328381689,1717306241899,-344.20198755,0.00021037,2]
[328381690,1717306241911,-500.0,0.00021037,2]
[328381691,1717306241920,-500.0,0.00021037,2]
[328381692,1717306241930,-548.21686426,0.00021037,2]
[328381693,1717306241941,-500.0,0.00021037,2]
[328381694,1717306241951,-500.0,0.00021037,2]
[328381695,1717306241962,-500.0,0.00021037,2]
[328381696,1717306241972,-277.26165553,0.00021037,2]
[328381697,1717306241982,-500.0,0.00021037,2]
[328381698,1717306241992,-1725.32356162,0.00021038,7]
[328381699,1717306242002,-4095.60853176,0.00021038,2]
[328381700,1717306242011,-3077.93598443,0.00021038,2]
[328381701,1717306242022,-275.16387661,0.00021038,2]
[328381702,1717306242032,-11079.50388954,0.00021038,2]
[328381703,1717306242042,-3985.31374501,0.00021038,2]
[328381704,1717306242051,-12889.42327222,0.00021038,2]
[328381705,1717306242061,-155.25515823,0.00021038,2]
[328381706,1717306242071,-124219.09917599,0.00021038,2]
[328381707,1717306242080,-235.90566237,0.00021038,2]
[328381708,1717306242089,-382.7424181,0.00021038,2]
[328381709,1717306242098,-173.16519453,0.00021038,2]
[328381710,1717306242107,-1248.15530254,0.00021038,2]
[328381711,1717306242116,-152.409607,0.00021038,2]
[328381712,1717306242126,-151.0,0.00021038,2]
[328381713,1717306242135,-151.0,0.00021038,2]
[328381714,1717306242145,-151.0,0.00021038,2]
[328381715,1717306242155,-157.757473,0.00021038,2]
[328381716,1717306242164,-446.251708,0.00021038,2]
[328381717,1717306242173,-151.0,0.00021038,2]
[328381718,1717306242183,-446.251708,0.00021038,2]
[328381719,1717306242192,-151.0,0.00021038,2]
[328381720,1717306242202,-151.0,0.00021038,2]
[328381721,1717306242213,-151.0,0.00021038,2]
[328381722,1717306242223,-1798.043374,0.00021038,2]
[328381723,1717306242232,-1798.043374,0.00021038,2]
[328381724,1717306242241,-732.945263,0.00021038,2]
[328381725,1717306242251,-732.945263,0.00021038,2]
[328381726,1717306242260,-151.0,0.00021038,2]
[328381727,1717306242270,-239.295397,0.00021038,2]
[328381728,1717306242279,-169.839855,0.00021038,2]
[328381729,1717306242288,-239.295397,0.00021038,2]
[328381730,1717306242298,-421.679263,0.00021038,2]
[328381731,1717306242307,-421.679263,0.00021038,2]
[328381732,1717306242317,-151.0,0.00021038,2]
[328381733,1717306242326,-151.0,0.00021038,2]
[328381734,1717306242335,-152.602613,0.00021038,2]
[328381735,1717306242345,-151.0,0.00021038,2]
[328381736,1717306242354,-151.804322,0.00021038,2]
[328381737,1717306242364,-323.288112,0.00021038,2]
[328381738,1717306242374,-323.288112,0.00021038,2]
[328381739,1717306242383,-323.288112,0.00021038,2]
[328381740,1717306242393,-323.288112,0.00021038,2]
[328381741,1717306242403,-1329.96433421,0.00021039,2]
[328381742,1717306242412,-446.251708,0.0002104,2]
[328381743,1717306242421,-151.0,0.0002104,2]
[328381744,1717306242431,-446.251708,0.0002104,2]
[328381745,1717306242440,-151.0,0.0002104,2]
[328381747,1717306242450,-151.0,0.0002104,2]
[328381748,1717306242461,-1798.043374,0.0002104,2]
[328381749,1717306242471,-1798.043374,0.0002104,2]
[328381751,1717306242480,-732.945263,0.0002104,2]
[328381752,1717306242490,-732.945263,0.0002104,2]
[328381754,1717306242621,-151.0,0.0002104,2]
[328381755,1717306242635,-239.295397,0.0002104,2]
[328381756,1717306242645,-239.295397,0.0002104,2]
[328381757,1717306242655,-421.679263,0.0002104,2]
[328381758,1717306242665,-421.679263,0.0002104,2]
[328381759,1717306242675,-151.0,0.0002104,2]
[328381760,1717306242684,-281.66589,0.0002104,2]
[328381762,1717306242693,-323.288112,0.0002104,2]
[328381763,1717306242703,-323.288112,0.0002104,2]
[328381764,1717306242713,-153.381844,0.00021095,2]
[328381765,1717306242722,-151.0,0.00021095,2]
[328381766,1717306242730,-153.374524,0.00021095,2]
[328381767,1717306242740,-159.246631,0.00021095,2]
[328381768,1717306242749,-446.251708,0.00021095,2]
[328381769,1717306242758,-446.251708,0.00021095,2]
[328381770,1717306242768,-446.251708,0.00021095,2]
[328381771,1717306242777,-151.0,0.00021095,2]
[328381772,1717306242787,-153.922203,0.00021095,2]
[328381773,1717306242796,-446.251708,0.00021095,2]
[328381774,1717306242806,-446.251708,0.00021095,2]
[328381775,1717306242815,-446.251708,0.00021095,2]
[328381776,1717306242824,-151.0,0.00021095,2]
[328381777,1717306242834,-151.0,0.00021095,2]
[328381778,1717306242843,-151.0,0.00021095,2]
[328381779,1717306242853,-151.0,0.00021095,2]
[328381780,1717306242862,-151.0,0.00021095,2]
[328381781,1717306242875,-277.312102,0.00021095,2]
[328381782,1717306242885,-1798.043374,0.00021095,2]
[328381783,1717306242894,-1798.043374,0.00021095,2]
[328381785,1717306242903,-1798.043374,0.00021095,2]
[328381787,1717306242915,-1798.043374,0.00021095,2]
[328381788,1717306242924,-1798.043374,0.00021095,2]
[328381789,1717306242934,-1798.043374,0.00021095,2]
[328381790,1717306242943,-1798.043374,0.00021095,2]
[328381791,1717306242954,-1798.043374,0.00021095,2]
[328381792,1717306242964,-732.945263,0.00021095,2]
[328381793,1717306242973,-732.945263,0.00021095,2]
[328381794,1717306242982,-732.945263,0.00021095,2]
[328381795,1717306242992,-732.945263,0.00021095,2]
[328381796,1717306243001,-732.945263,0.00021095,2]
[328381797,1717306243011,-732.945263,0.00021095,2]
[328381798,1717306243020,-732.945263,0.00021095,2]
[328381800,1717306243029,-732.945263,0.00021095,2]
[328381802,1717306243039,-732.945263,0.00021095,2]
[328381803,1717306243049,-732.945263,0.00021095,2]
[328381804,1717306243059,-153.977671,0.00021095,2]
[328381805,1717306243068,-2064.34,0.00021095,7]
[328381806,1717306243077,-2064.34,0.00021095,7]
[328381807,1717306243087,-2064.34,0.00021095,7]
[328381808,1717306243097,-2064.34,0.00021095,7]
[328381809,1717306243106,-2064.34,0.00021095,7]
[328381810,1717306243116,-2064.34,0.00021095,7]
[328381811,1717306243125,-2064.34,0.00021095,7]
[328381812,1717306243135,-2064.34,0.00021095,7]